bitfinex-derivatives/quotes_SOLF0:USTF0_20251115
["timestamp","ask_amount","ask_price","bid_price","bid_amount"]
[1763223500537,64.1,141.07,141.05,3.25312315]
[1763223501742,0.05245147,141.08,141.05,3.25312315]
[1763223505940,10.19718837,141.15,141.05,3.25312315]
[1763223505941,1.42855,141.15,141.06,4.62]
[1763223506146,1.42855,141.15,141.07,3.2]
[1763223506341,4.53855,141.15,141.07,3.2]
[1763223506545,3.11,141.12,141.07,3.2]
[1763223506945,0.05313733,141.11,141.07,3.2]
[1763223507151,0.05313733,141.11,141.08,3.24601695]
[1763223507347,0.05264162,141.11,141.08,3.24717844]
[1763223508946,3.16264162,141.11,141.08,0.04717844]
[1763223509149,3.11,141.1,141.08,0.04717844]
[1763223511546,3.11,141.1,141.02,3.2]
[1763223511751,3.11,141.06,141.02,3.2]
[1763223511952,3.11,141.06,140.96,3.2]
[1763223512155,7.00741285,141.04,140.96,3.2]
[1763223512654,0.05220463,141.01,141.0,3.2]
[1763223514254,0.05220463,141.01,140.99,3.34324119]
[1763223519467,3.28220463,141.01,140.99,0.05324119]
[1763223520160,3.23,141.0,140.92,3.29]
[1763223520961,2.83392825,140.98,140.92,3.29]
[1763223521163,0.04963219,140.96,140.95,3.29]
[1763223535979,3.27963219,140.96,140.94,3.33782488]
[1763223536180,0.04963219,140.96,140.94,3.33782488]
[1763223541487,3.27963219,140.96,140.94,3.33782488]
[1763223541886,0.04963219,140.96,140.94,3.33782488]
[1763223546792,3.11963219,140.96,140.94,3.33782488]
[1763223547187,0.04963219,140.96,140.94,3.33782488]
[1763223552691,2.83392825,141.02,140.96,3.28]
[1763223552891,2.83392825,141.0,140.96,3.28]
[1763223553083,2.83392825,141.02,140.96,3.28]
[1763223553486,70.67,141.06,140.96,3.28]
[1763223553690,70.13392825,141.06,140.97,3.28]
[1763223553890,67.3,141.06,140.97,3.28]
[1763223554092,0.0512835,141.03,141.01,3.28]
[1763223556697,1.86275294,141.03,141.01,3.28]
[1763223556990,1.81146944,141.04,141.03,3.28]
[1763223557188,1.81146944,141.04,141.03,12.15015347]
[1763223558497,1.81146944,141.04,141.03,12.15053552]
[1763223559001,3.37,141.03,141.02,0.04965233]
[1763223563303,5.18146944,141.04,141.02,0.04965233]
[1763223563895,1.81146944,141.04,141.02,3.32965233]
[1763223567199,5.18146944,141.04,141.02,0.04965233]
[1763223567500,3.37,141.03,141.02,0.04965233]
[1763223571605,3.37,141.03,140.96,3.28]
[1763223571804,1.81146944,140.98,140.96,3.28]
[1763223572803,1.8647076,140.98,140.96,3.32898954]
[1763223574208,5.0947076,140.98,140.96,0.04898954]
[1763223575905,5.0947076,140.98,140.96,3.16898954]
[1763223577807,0.05323816,140.98,140.96,3.16898954]
[1763223582208,1.81146944,141.03,140.97,4.93146944]
[1763223582403,23.28,141.06,141.0,3.12]
[1763223582606,1.81146944,141.08,141.02,3.12]
[1763223583211,0.05116457,141.06,141.05,3.12]
[1763223585709,0.05116457,141.06,141.04,0.04594267]
[1763223585911,0.05116457,141.06,141.04,3.16594267]
[1763223592115,3.28116457,141.06,141.04,0.04594267]
[1763223597120,1.81146944,141.05,141.04,0.04594267]
[1763223600224,5.04146944,141.05,141.04,0.04594267]
[1763223600424,3.23,141.04,140.98,3.12]
[1763223600722,72.96,141.11,140.98,3.12]
[1763223600723,3.23,141.02,140.98,3.12]
[1763223601122,3.23,141.0,140.98,3.12]
[1763223601524,0.0540445,141.0,140.98,3.16630709]
[1763223602926,0.0540445,141.0,140.99,3.12]
[1763223603219,3.23,141.04,140.99,3.12]
[1763223603416,5.04146944,141.04,140.99,3.12]
[1763223604027,0.04575044,141.03,140.99,3.12]
[1763223608827,0.04575044,141.03,141.01,3.39]
[1763223614722,1.81146944,141.06,141.01,3.39]
[1763223614723,1.81146944,141.08,141.03,3.11]
[1763223614928,7.34252457,141.13,141.03,3.11]
[1763223615129,2.82870078,141.11,141.03,3.11]
[1763223615320,3.28,141.1,141.03,3.11]
[1763223615834,0.04946491,141.08,141.06,3.11]
[1763223616834,3.32946491,141.08,141.05,0.0511119]
[1763223617129,3.32946491,141.08,141.05,3.1611119]
[1763223618334,0.04946491,141.08,141.05,3.1611119]
[1763223622936,3.28,141.14,141.07,3.11]
[1763223623737,3.28,141.13,141.07,3.11]
[1763223623932,3.33354413,141.11,141.09,0.05263523]
[1763223624829,0.05354413,141.11,141.09,3.16263523]
[1763223625938,0.05354413,141.11,141.1,8.86472331]
[1763223626134,3.28,141.14,141.11,3.11]
[1763223626334,3.28,141.14,141.12,8.86472331]
[1763223626536,3.28,141.14,141.13,8.86472331]
[1763223627441,0.05408348,141.15,141.13,8.86472331]
[1763223627639,3.33408348,141.15,141.14,8.86472331]
[1763223627845,6.16278426,141.15,141.14,8.66605453]
[1763223628140,6.16278426,141.15,141.12,0.05107884]
[1763223628141,3.28,141.14,141.05,3.11]
[1763223628337,3.28,141.11,141.05,3.11]
[1763223629136,0.05020492,141.09,141.07,0.04488748]
[1763223629539,0.05020492,141.09,141.07,3.15488748]
[1763223629841,3.33020492,141.09,141.07,0.04488748]
[1763223630044,0.05020492,141.09,141.07,3.15488748]
[1763223636140,3.12,141.11,141.07,3.15488748]
[1763223637144,0.04999852,141.1,141.07,3.15488748]
[1763223638045,2.94999852,141.1,141.07,3.15488748]
[1763223639949,2.94999852,141.1,141.08,8.86614955]
[1763223640246,2.94999852,141.1,141.09,8.86614955]
[1763223646052,2.82870078,141.13,141.09,8.86614955]
[1763223646250,2.82870078,141.13,141.1,8.86614955]
[1763223646556,2.82870078,141.13,141.11,8.86614955]
[1763223646753,6.57547421,141.14,141.12,8.86614955]
[1763223647053,9.40417499,141.15,141.13,8.86614955]
[1763223647248,0.0539457,141.14,141.12,0.05395523]
[1763223647448,0.0539457,141.14,141.13,8.86593843]
[1763223650160,6.62941991,141.14,141.13,8.86593843]
[1763223656058,1.30997886,141.14,141.13,8.86593843]
[1763223658265,2.82870078,141.14,141.13,8.86593843]
[1763223660557,0.03549024,141.15,141.14,3.06]
[1763223660762,0.03549024,141.15,141.14,11.92593843]
[1763223661163,2.86419102,141.15,141.14,8.86593843]
[1763223663960,0.03549024,141.15,141.14,8.86593843]
[1763223665364,0.03549024,141.15,141.14,12.15593843]
[1763223666160,68.99683454,141.16,141.15,3.29]
[1763223666359,11.59733915,141.18,141.15,12.15593843]
[1763223666568,74.28,141.17,141.16,8.86593843]
[1763223666869,74.28,141.17,141.15,3.29]
[1763223667066,74.31549024,141.17,141.15,3.33833949]
[1763223668570,0.03549024,141.17,141.15,3.33833949]
[1763223669569,79.60863837,141.21,141.16,3.29]
[1763223669763,79.60863837,141.21,141.18,3.29]
[1763223669764,70.84,141.21,141.18,3.29]
[1763223670070,70.84,141.21,141.19,12.15199265]
[1763223670372,70.84,141.21,141.2,12.15199265]
[1763223671864,70.87,141.21,141.2,8.86199265]
[1763223672565,73.69870078,141.21,141.2,8.86199265]
[1763223673068,0.03,141.2,141.11,3.07]
[1763223673269,0.03,141.14,141.11,3.07]
[1763223673469,74.26,141.13,141.11,3.07]
[1763223674163,74.26,141.13,141.11,3.11688608]
[1763223675274,77.11870078,141.13,141.11,0.04688608]
[1763223675860,0.03,141.12,141.11,0.04688608]
[1763223676071,71.7994485,141.13,141.11,0.04688608]
[1763223676865,1.81016548,141.12,141.11,0.04688608]
[1763223681669,1.81016548,141.14,141.11,3.11688608]
[1763223681871,1.81016548,141.14,141.11,3.11995657]
[1763223682065,74.26,141.17,141.11,3.11995657]
[1763223682066,1.81016548,141.13,141.11,3.11995657]
[1763223684367,1.81016548,141.13,141.11,0.04995657]
[1763223685166,1.81016548,141.13,141.12,8.86501253]
[1763223685372,74.26,141.17,141.12,8.86501253]
[1763223685570,1.81016548,141.13,141.11,3.11995657]
[1763223685869,1.81016548,141.13,141.12,8.86501555]
[1763223695469,76.07016548,141.13,141.12,8.86501555]
[1763223696179,70.75115689,141.13,141.12,8.86501555]
[1763223696379,72.56132237,141.13,141.12,8.86501555]
[1763223696680,1.81016548,141.13,141.12,8.86501555]
[1763223702378,76.07016548,141.13,141.12,8.86501555]
[1763223705283,8.75797853,141.16,141.12,12.01501555]
[1763223705482,29.02559592,141.25,141.13,8.86501555]
[1763223705483,74.26,141.15,141.13,8.86501555]
[1763223705679,74.26,141.15,141.14,8.86501555]
[1763223705886,74.26,141.15,141.13,0.0481074]
[1763223706783,1.81016548,141.14,141.13,0.0481074]
[1763223707781,1.81016548,141.14,141.13,3.1981074]
[1763223707988,1.81016548,141.16,141.13,3.1981074]
[1763223708189,8.75797853,141.18,141.13,3.15]
[1763223708190,1.81016548,141.18,141.13,3.15]
[1763223708383,1.81016548,141.18,141.12,1.81016548]
[1763223708384,1.81016548,141.18,141.14,3.15]
[1763223708590,74.26,141.19,141.15,3.15]
[1763223708788,74.26,141.19,141.17,3.15]
[1763223710793,74.26,141.18,141.17,3.15]
[1763223711294,1.81016548,141.2,141.17,3.15]
[1763223711494,74.26,141.19,141.17,3.15]
[1763223714594,74.26,141.2,141.17,3.15]
[1763223716191,74.26,141.2,141.19,3.15]
[1763223718688,1.81016548,141.23,141.19,3.15]
[1763223718893,6.56080137,141.26,141.2,3.19778998]
[1763223718894,74.24,141.24,141.2,3.19778998]
[1763223719201,1.81016548,141.25,141.2,3.19778998]
[1763223719401,76.05016548,141.25,141.2,3.19778998]
[1763223721298,1.81016548,141.23,141.2,3.19778998]
[1763223723608,5.15016548,141.21,141.2,0.04778998]
[1763223723909,79.37016548,141.21,141.2,0.04778998]
[1763223724410,76.03016548,141.21,141.16,3.22]
[1763223725300,0.05171529,141.2,141.18,5.03016548]
[1763223725604,11.10335786,141.27,141.19,3.22]
[1763223725605,1.81016548,141.24,141.19,3.22]
[1763223726398,1.81016548,141.24,141.21,3.22]
[1763223728107,1.81016548,141.28,141.23,3.22]
[1763223728300,1.81016548,141.28,141.25,3.22]
[1763223729106,5.12016548,141.28,141.25,3.22]
[1763223730312,1.81016548,141.28,141.25,3.22]
[1763223733107,1.81016548,141.26,141.24,3.16320769]
[1763223734313,1.81016548,141.27,141.24,3.16320769]
[1763223735412,1.23229462,141.32,141.24,3.16320769]
[1763223735712,1.81016548,141.3,141.24,3.16320769]
[1763223736217,1.81016548,141.32,141.26,3.11]
[1763223736406,1.81016548,141.32,141.29,3.11]
[1763223736608,1.81016548,141.34,141.29,3.11]
[1763223736804,1.81016548,141.34,141.31,3.11]
[1763223737005,2.81878094,141.35,141.31,3.11]
[1763223737209,5.96878094,141.36,141.31,3.11]
[1763223737416,2.81878094,141.36,141.31,3.11]
[1763223737717,2.81878094,141.38,141.31,3.11]
[1763223737915,2.81878094,141.38,141.34,3.11]
[1763223738108,5.96878094,141.38,141.34,3.11]
[1763223738515,3.15,141.35,141.33,0.04706669]
[1763223738717,2.81878094,141.34,141.33,0.04706669]
[1763223740109,5.96878094,141.34,141.33,0.04706669]
[1763223740512,3.15,141.37,141.33,3.15706669]
[1763223740707,5.96878094,141.37,141.33,3.15706669]
[1763223741712,2.81878094,141.37,141.33,3.15706669]
[1763223742811,5.96878094,141.37,141.33,3.15706669]
[1763223743415,5.96878094,141.35,141.33,0.04706669]
[1763223743717,3.15,141.34,141.33,0.04706669]
[1763223744814,2.81878094,141.35,141.33,0.04706669]
[1763223744815,2.81878094,141.35,141.33,3.15706669]
[1763223745118,5.96878094,141.37,141.33,3.15706669]
[1763223745314,2.81878094,141.37,141.33,3.15706669]
[1763223746719,5.96878094,141.37,141.33,3.15706669]
[1763223750420,2.81878094,141.37,141.33,3.15706669]
[1763223750620,5.96878094,141.37,141.33,3.15706669]
[1763223753024,5.96878094,141.4,141.33,3.15706669]
[1763223754522,3.22,141.37,141.33,3.15706669]
[1763223754720,2.81878094,141.36,141.34,3.21997409]
[1763223755018,2.81878094,141.36,141.34,3.21539703]
[1763223755621,6.03878094,141.38,141.34,3.21539703]
[1763223755821,2.81878094,141.38,141.34,3.21539703]
[1763223756013,2.81878094,141.4,141.34,3.21539703]
[1763223756215,2.81878094,141.41,141.34,3.21539703]
[1763223757522,2.81878094,141.43,141.34,3.21539703]
[1763223757718,6.03878094,141.43,141.38,3.17]
[1763223758924,2.81878094,141.43,141.38,3.17]
[1763223760316,2.81878094,141.44,141.38,3.17]
[1763223760620,2.81878094,141.45,141.41,3.17]
[1763223760815,2.81878094,141.45,141.42,0.05276271]
[1763223761018,2.81878094,141.46,141.43,3.17]
[1763223762126,3.22,141.45,141.42,3.22276271]
[1763223762325,6.03878094,141.46,141.42,3.22276271]
[1763223764323,2.81878094,141.46,141.42,3.22276271]
[1763223764820,2.81878094,141.48,141.42,3.22276271]
[1763223766228,6.03878094,141.5,141.42,3.22276271]
[1763223766529,3.22,141.49,141.46,3.17]
[1763223767421,6.03878094,141.5,141.46,3.17]
[1763223768323,2.81878094,141.52,141.46,3.17]
[1763223768523,6.03878094,141.52,141.49,3.17]
[1763223768927,3.22,141.51,141.48,3.21578456]
[1763223769123,3.22,141.49,141.48,0.04578456]
[1763223774829,6.03878094,141.5,141.48,0.04578456]
[1763223775031,3.22,141.49,141.48,0.04578456]
[1763223780834,6.03878094,141.5,141.48,0.04578456]
[1763223781230,2.81878094,141.52,141.48,3.21578456]
[1763223781536,3.22,141.51,141.48,3.21578456]
[1763223781935,3.22,141.51,141.48,0.04578456]
[1763223782235,3.22,141.49,141.48,0.04578456]
[1763223784241,3.39,141.51,141.48,3.14578456]
[1763223784937,6.20878094,141.52,141.48,3.14578456]
[1763223785133,3.39,141.52,141.48,3.14578456]
[1763223786036,6.20878094,141.54,141.48,3.14578456]
[1763223786235,3.39,141.54,141.48,3.14578456]
[1763223787437,3.39,141.57,141.5,3.1]
[1763223787641,6.20878094,141.6,141.52,3.14907199]
[1763223787839,3.39,141.59,141.55,3.1524956]
[1763223788229,7.43846292,141.62,141.55,3.1524956]
[1763223788435,3.39,141.61,141.55,3.1524956]
[1763223788845,3.39,141.59,141.55,3.1524956]
[1763223789136,6.20878094,141.56,141.55,0.0524956]
[1763223790443,3.39,141.56,141.55,0.0524956]
[1763223791533,3.1,141.58,141.55,0.0524956]
[1763223792640,3.1,141.58,141.55,3.2224956]
[1763223793337,3.1,141.58,141.55,0.0524956]
[1763223794945,3.1,141.56,141.55,0.0524956]
[1763223795444,3.1,141.56,141.48,3.17]
[1763223795643,5.91878094,141.54,141.48,3.17]
[1763223795843,3.1,141.53,141.48,3.17]
[1763223796047,3.1,141.53,141.42,2.81878094]
[1763223796048,3.1,141.51,141.46,3.17]
[1763223796344,5.91878094,141.54,141.46,3.17]
[1763223796542,0.04655352,141.51,141.49,0.04959326]
[1763223797038,0.04655352,141.51,141.49,3.21959326]
[1763223798139,3.14655352,141.51,141.49,0.04959326]
[1763223799451,0.04655352,141.51,141.49,3.21959326]
[1763223804849,0.04655352,141.51,141.49,0.04959326]
[1763223804850,4.94611532,141.51,141.49,0.04959326]
[1763223805152,3.14655352,141.51,141.49,0.04959326]
[1763223806852,3.1,141.5,141.49,0.04959326]
[1763223811054,4.8995618,141.5,141.49,0.04959326]
[1763223813763,3.1,141.49,141.42,6.63261177]
[1763223813961,3.23,141.43,141.39,6.63261177]
[1763223814158,1.7995618,141.4,141.37,3.17]
[1763223814354,5.0295618,141.4,141.37,3.17]
[1763223814760,5.0295618,141.38,141.37,0.04892134]
[1763223815160,5.08352017,141.4,141.37,0.04892134]
[1763223815361,1.85352017,141.4,141.37,3.17892134]
[1763223817365,3.23,141.39,141.37,0.04892134]
[1763223818269,1.7995618,141.38,141.37,0.04892134]
[1763223818469,3.23,141.39,141.37,0.04892134]
[1763223820068,5.0295618,141.38,141.37,0.04892134]
[1763223820774,0.05395837,141.4,141.37,0.04892134]
[1763223820966,1.7995618,141.38,141.37,0.04892134]
[1763223822366,0.05395837,141.4,141.37,3.17892134]
[1763223823466,0.05395837,141.4,141.39,3.13]
[1763223824268,4.91001153,141.49,141.4,3.13]
[1763223824469,3.23,141.51,141.45,1.7995618]
[1763223824671,1.7995618,141.49,141.43,3.13]
[1763223824872,1.7995618,141.49,141.38,6.63261177]
[1763223824873,5.0295618,141.47,141.4,3.13]
[1763223825270,0.04562897,141.45,141.42,0.04611964]
[1763223825476,0.04562897,141.45,141.42,3.17611964]
[1763223825978,0.04562897,141.45,141.43,3.13]
[1763223829074,3.23,141.43,141.37,6.63261177]
[1763223829268,1.7995618,141.42,141.36,4.9295618]
[1763223829472,1.7995618,141.44,141.38,1.7995618]
[1763223829678,1.7995618,141.45,141.38,4.9295618]
[1763223829980,5.0295618,141.45,141.38,4.9295618]
[1763223830380,5.07437303,141.43,141.4,0.04741483]
[1763223830581,5.08323961,141.43,141.4,0.05122782]
[1763223830881,3.23,141.42,141.4,0.05122782]
[1763223832473,5.0295618,141.41,141.4,0.05122782]
[1763223833481,3.28367781,141.43,141.4,0.05122782]
[1763223833679,3.23,141.4,141.3,3.13]
[1763223833887,5.0295618,141.37,141.31,4.9295618]
[1763223834088,5.0295618,141.37,141.31,3.13]
[1763223834573,3.23,141.36,141.29,1.7995618]
[1763223834773,5.0295618,141.35,141.29,1.7995618]
[1763223834986,3.27756496,141.34,141.31,0.04839942]
[1763223835575,0.04756496,141.34,141.31,4.97796122]
[1763223835876,3.27756496,141.34,141.31,0.04839942]
[1763223837484,0.04756496,141.34,141.31,3.17839942]
[1763223837680,3.27756496,141.34,141.31,0.04839942]
[1763223841087,3.27756496,141.34,141.31,3.17839942]
[1763223841088,0.04756496,141.34,141.31,3.17839942]
[1763223841986,3.23,141.4,141.31,3.17839942]
[1763223842191,3.23,141.4,141.31,3.13]
[1763223842985,3.23,141.36,141.34,0.05126739]
[1763223845889,0.05191017,141.37,141.34,3.18126739]
[1763223847484,0.05191017,141.37,141.36,4.38405522]
[1763223847687,3.19,141.42,141.37,3.13]
[1763223848096,3.19,141.45,141.37,3.13]
[1763223848505,3.19,141.44,141.37,3.13]
[1763223848693,3.23850862,141.42,141.4,0.05376986]
[1763223848893,3.23469572,141.42,141.4,0.05376986]
[1763223853490,3.27,141.41,141.34,7.51405522]
[1763223854402,3.27,141.4,141.34,7.51405522]
[1763223854598,3.31640965,141.39,141.36,0.04522966]
[1763223856807,3.27,141.37,141.36,0.04522966]
[1763223857007,8.18001153,141.37,141.36,0.04522966]
[1763223860203,4.91001153,141.38,141.36,0.04522966]
[1763223860504,0.04640965,141.39,141.36,3.33522966]
[1763223862109,3.31640965,141.39,141.36,0.04522966]
[1763223862301,8.22642118,141.39,141.36,0.04522966]
[1763223862503,3.31640965,141.39,141.36,0.04522966]
[1763223864404,0.04640965,141.39,141.36,3.33522966]
[1763223866608,3.31640965,141.39,141.36,0.04522966]
[1763223867709,3.27,141.38,141.36,0.04522966]
[1763223868100,0.04640965,141.39,141.36,3.33522966]
[1763223873318,4.95642118,141.39,141.36,3.33522966]
[1763223873618,0.04640965,141.39,141.36,3.33522966]
[1763223873816,4.95642118,141.39,141.36,3.33522966]
[1763223874013,3.36640965,141.39,141.36,3.33522966]
[1763223874211,8.2806729,141.38,141.36,0.04522966]
[1763223874415,4.9606729,141.37,141.36,0.04522966]
[1763223876722,4.9606729,141.37,141.36,3.29522966]
[1763223877025,4.96136108,141.38,141.36,3.29522966]
[1763223877220,0.04640965,141.39,141.36,3.29522966]
[1763223877421,4.96178201,141.38,141.36,3.29522966]
[1763223877618,4.96178201,141.37,141.36,3.29522966]
[1763223877819,0.04640965,141.39,141.36,3.29522966]
[1763223877820,4.96178201,141.38,141.36,3.29522966]
[1763223878021,0.04640965,141.39,141.36,3.29522966]
[1763223878319,4.96177354,141.38,141.36,3.29522966]
[1763223878522,0.04640965,141.39,141.36,3.29522966]
[1763223878825,4.96182152,141.38,141.36,3.29522966]
[1763223879127,4.93218793,141.38,141.36,3.29522966]
[1763223879625,0.04640965,141.39,141.36,3.29522966]
[1763223882422,4.93484913,141.38,141.36,3.29522966]
[1763223882620,4.93484913,141.37,141.36,0.04522966]
[1763223882817,4.93484913,141.37,141.36,3.29522966]
[1763223883015,4.93484913,141.38,141.36,3.29522966]
[1763223883219,0.04640965,141.39,141.36,3.29522966]
[1763223883422,4.9361779,141.38,141.36,3.29522966]
[1763223883620,0.04640965,141.39,141.36,3.29522966]
[1763223883823,4.9355567,141.38,141.36,3.29522966]
[1763223884024,0.04640965,141.39,141.36,3.29522966]
[1763223884227,4.93539153,141.38,141.36,3.29522966]
[1763223884426,0.04640965,141.39,141.36,3.29522966]
[1763223884626,4.93616451,141.38,141.36,3.29522966]
[1763223884826,0.04640965,141.39,141.36,3.29522966]
[1763223885027,4.93617897,141.38,141.36,3.29522966]
[1763223885223,3.32,141.38,141.36,0.04522966]
[1763223885528,8.25616049,141.37,141.36,0.04522966]
[1763223888531,3.32,141.36,141.3,3.25]
[1763223888835,3.32,141.34,141.3,3.25]
[1763223889334,4.93881917,141.33,141.3,3.25]
[1763223889530,0.05011783,141.33,141.3,3.30326523]
[1763223892339,0.08011783,141.33,141.3,3.30326523]
[1763223893137,0.05011783,141.33,141.3,3.30326523]
[1763223895840,0.05011783,141.33,141.31,3.25]
[1763223896837,9.37735712,141.4,141.32,2.81655575]
[1763223896838,6.59080137,141.4,141.32,2.81655575]
[1763223897039,4.93766864,141.39,141.33,3.25]
[1763223897238,4.93766864,141.38,141.33,3.25]
[1763223897439,4.93766864,141.37,141.33,3.25]
[1763223897641,4.93766864,141.36,141.33,3.25]
[1763223897838,0.04784846,141.36,141.33,3.30359854]
[1763223900248,5.01761519,141.35,141.33,0.05359854]
[1763223900546,4.93761519,141.34,141.33,0.05359854]
[1763223900750,5.01761519,141.34,141.33,0.05359854]
[1763223901046,4.93761519,141.34,141.33,3.30359854]
[1763223901242,0.04784846,141.36,141.33,3.30359854]
[1763223901447,0.12784846,141.36,141.33,3.30359854]
[1763223901745,0.12784846,141.36,141.33,0.05359854]
[1763223901947,0.08,141.35,141.33,0.05359854]
[1763223910044,0.04784846,141.36,141.33,3.41359854]
[1763223911448,0.08,141.42,141.34,3.38]
[1763223912348,0.04660676,141.39,141.38,3.38]
[1763223914347,4.95375444,141.39,141.38,3.38]
[1763223914550,4.06340441,141.43,141.38,3.38]
[1763223914754,6.68080137,141.45,141.38,3.38]
[1763223915555,0.12,141.44,141.4,3.43206862]
[1763223916748,0.12,141.44,141.4,0.05206862]
[1763223916949,0.12,141.43,141.4,0.05206862]
[1763223918149,0.12,141.43,141.37,3.38]
[1763223918752,0.12,141.42,141.37,3.38]
[1763223919148,0.05095275,141.41,141.38,0.04584187]
[1763223919355,0.17095275,141.41,141.38,0.04584187]
[1763223919552,0.05095275,141.41,141.38,3.42584187]
[1763223926462,4.89452029,141.4,141.38,3.42584187]
[1763223931258,0.05095275,141.41,141.38,3.42584187]
[1763223931259,4.94547304,141.41,141.38,3.42584187]
[1763223933368,0.05095275,141.41,141.38,3.42584187]
[1763223933865,4.94547304,141.41,141.38,3.42584187]
[1763223934172,0.05095275,141.41,141.38,3.42584187]
[1763223934570,0.12,141.4,141.38,3.42584187]
[1763223934770,0.12,141.4,141.38,0.04584187]
[1763223934972,0.12,141.4,141.38,3.10584187]
[1763223936671,5.06547304,141.41,141.38,3.10584187]
[1763223939078,4.94547304,141.41,141.38,3.10584187]
[1763223939372,0.05095275,141.41,141.4,3.06]
[1763223941268,0.00095275,141.41,141.4,3.06]
[1763223945883,0.00095275,141.41,141.4,4.86187145]
[1763223946674,0.00095275,141.41,141.4,1.80187145]
[1763223947884,0.00095275,141.41,141.4,4.86187145]
[1763223949686,0.00095275,141.41,141.4,1.80187145]
[1763223949894,0.00095275,141.41,141.4,4.86187145]
[1763223952795,0.17095275,141.41,141.4,1.80187145]
[1763223952995,0.00095275,141.41,141.4,1.80187145]
[1763223953194,0.00095275,141.41,141.4,4.86187145]
[1763223953498,0.00095275,141.41,141.4,1.80187145]
[1763223954690,0.00095275,141.41,141.4,4.86187145]
[1763223954998,0.00095275,141.41,141.4,1.80187145]
[1763223957299,0.00095275,141.41,141.4,4.86187145]
[1763223960303,0.00095275,141.41,141.4,1.80187145]
[1763223961899,0.00095275,141.41,141.4,4.86187145]
[1763223962701,0.00095275,141.41,141.4,1.80187145]
[1763223963205,0.00095275,141.41,141.4,4.86187145]
[1763223963904,0.00095275,141.41,141.4,1.80187145]
[1763223964404,0.00095275,141.41,141.4,4.97187145]
[1763223964605,0.00095275,141.41,141.4,1.80187145]
[1763223966001,8.75797853,141.47,141.4,1.80187145]
[1763223966002,6.56080137,141.46,141.4,1.80187145]
[1763223966210,6.71080137,141.45,141.42,3.17]
[1763223967107,6.71080137,141.45,141.42,3.22408484]
[1763223968105,0.15,141.44,141.42,0.05408484]
[1763223968306,0.15,141.43,141.42,0.05408484]
[1763223977815,6.58899371,141.44,141.42,3.14408484]
[1763223978016,6.58899371,141.44,141.43,3.09]
[1763223978217,6.58899371,141.45,141.43,3.09]
[1763223978416,6.58899371,141.45,141.44,4.89187145]
[1763223978918,6.58899371,141.46,141.45,3.09]
[1763223979719,8.75797853,141.48,141.45,3.09]
[1763223979915,8.75797853,141.48,141.47,4.89187145]
[1763223980312,8.75797853,141.49,141.48,3.09]
[1763223980917,8.75797853,141.5,141.48,3.09]
[1763223981212,8.75797853,141.51,141.48,3.09]
[1763223981417,12.10797853,141.51,141.48,3.09]
[1763223982216,3.35,141.51,141.48,3.09]
[1763223983120,12.10797853,141.53,141.48,3.09]
[1763223985423,82.95797853,141.55,141.49,3.09]
[1763223985814,86.30797853,141.55,141.51,3.1406159]
[1763223986020,77.55,141.55,141.51,3.1406159]
[1763223986925,3.35,141.54,141.51,3.1406159]
[1763223987225,3.35,141.54,141.51,0.0506159]
[1763223988015,3.35,141.54,141.44,2.81177076]
[1763223988224,3.35,141.52,141.45,3.09]
[1763223989123,3.35,141.49,141.47,0.04509422]
[1763223989825,3.35,141.48,141.42,3.09]
[1763223990825,0.04830748,141.46,141.44,0.04951898]
[1763223991718,3.39830748,141.46,141.44,0.04951898]
[1763223993434,0.04830748,141.46,141.44,3.13951898]
[1763223995733,3.24830748,141.46,141.44,0.04951898]
[1763223998728,3.24830748,141.46,141.44,3.29951898]
[1763224000537,3.24830748,141.46,141.44,0.04951898]
[1763224019251,3.24830748,141.46,141.44,3.29951898]
[1763224019452,3.24830748,141.46,141.44,0.04951898]
[1763224025056,0.04830748,141.46,141.45,3.34]
[1763224026857,3.42830748,141.46,141.44,3.38951898]
[1763224027054,3.42830748,141.46,141.44,0.04951898]
[1763224030357,3.38,141.45,141.39,3.34]
[1763224031263,3.38,141.45,141.41,0.04876679]
[1763224031463,3.38,141.45,141.41,3.10876679]
[1763224033962,3.17830748,141.46,141.41,3.10876679]
[1763224042773,0.04830748,141.46,141.41,3.10876679]
[1763224043780,3.17830748,141.46,141.41,3.10876679]
[1763224044386,0.04830748,141.46,141.41,3.10876679]